bitfinex-derivatives/quotes_BNBF0:USTF0_20250316
["timestamp","ask_amount","ask_price","bid_price","bid_amount"]
[1742142902282,0.2815252,604.64,602.8,0.30451309]
[1742142902784,0.2815252,604.63,602.8,0.30451309]
[1742142903077,0.2815252,604.62,602.8,0.30451309]
[1742142903285,0.2815252,604.61,602.82,0.33177399]
[1742142903479,0.2815252,604.68,602.83,0.30451309]
[1742142903677,0.2815252,604.67,602.83,0.30451309]
[1742142903879,0.2815252,604.66,602.83,0.30451309]
[1742142904080,0.2815252,604.65,602.84,0.30451309]
[1742142904276,0.2815252,604.68,602.83,0.30451309]
[1742142904484,0.2815252,604.64,602.85,0.30451309]
[1742142904680,0.2815252,604.63,602.86,0.30451309]
[1742142904880,0.2815252,604.68,602.87,0.30451309]
[1742142905185,0.2815252,604.68,602.88,0.30451309]
[1742142905586,0.2815252,604.68,602.89,0.30451309]
[1742142905781,0.2815252,604.68,602.9,0.30451309]
[1742142905982,0.2815252,604.68,602.91,0.30451309]
[1742142906383,0.2815252,604.68,602.83,0.30451309]
[1742142906583,0.2815252,604.68,602.84,0.30451309]
[1742142906779,0.2815252,604.68,602.83,0.30451309]
[1742142907085,0.2815252,604.68,602.84,0.30451309]
[1742142907483,0.2815252,604.68,602.85,0.30451309]
[1742142907786,0.2815252,604.68,602.86,0.30451309]
[1742142907980,0.2815252,604.68,602.83,0.30451309]
[1742142908185,0.2815252,604.68,602.87,0.30451309]
[1742142908485,0.2815252,604.68,602.88,0.30451309]
[1742142908685,0.2815252,604.68,602.83,0.30451309]
[1742142908879,0.2815252,604.68,602.84,0.30451309]
[1742142909084,0.2815252,604.68,602.85,0.30451309]
[1742142909284,0.2815252,604.68,602.86,0.30451309]
[1742142909490,0.2815252,604.68,602.87,0.30451309]
[1742142909686,0.2815252,604.68,602.88,0.30451309]
[1742142909881,0.2815252,604.68,602.82,0.33177399]
[1742142910086,0.28126823,604.67,602.83,0.30425339]
[1742142910386,0.28126823,604.68,602.84,0.30425339]
[1742142910586,0.28126823,604.66,602.84,0.30425339]
[1742142910786,0.28126823,604.65,602.85,0.30425339]
[1742142911088,0.33074798,604.69,602.82,0.33177399]
[1742142911089,0.28126823,604.64,602.86,0.30425339]
[1742142911286,0.28126823,604.68,602.87,0.30425339]
[1742142911482,0.28126823,604.63,602.87,0.30425339]
[1742142911687,0.28126823,604.67,602.88,0.30425339]
[1742142912090,0.28126823,604.66,602.89,0.30425339]
[1742142912281,0.28126823,604.68,602.83,0.30425339]
[1742142912486,0.28126823,604.67,602.84,0.30425339]
[1742142912791,0.28126823,604.66,602.85,0.30425339]
[1742142912985,0.28126823,604.68,602.86,0.30425339]
[1742142913184,0.28126823,604.68,602.82,0.33177399]
[1742142913185,0.28126823,604.68,602.83,0.30425339]
[1742142913387,0.28126823,604.68,602.84,0.30425339]
[1742142913783,0.28126823,604.68,602.85,0.30425339]
[1742142914093,0.28126823,604.68,602.87,0.33174647]
[1742142914283,0.28126823,604.68,602.88,0.30425339]
[1742142914590,0.28126823,604.68,602.89,0.30425339]
[1742142914790,0.28126823,604.68,602.9,0.30425339]
[1742142914991,3.74078759,605.66,602.92,0.33171896]
[1742142915195,0.33028371,605.54,602.93,0.30425339]
[1742142915393,0.28126823,605.53,602.94,0.30425339]
[1742142915586,0.28126823,605.53,602.95,0.30425339]
[1742142915891,0.28126823,605.53,602.79,0.28825128]
[1742142915892,0.33030007,605.51,603.07,0.33163646]
[1742142916092,0.28126823,605.5,603.08,0.30425339]
[1742142916491,0.28126823,605.49,603.09,0.30425339]
[1742142916690,0.28126823,605.48,603.1,0.30425339]
[1742142916891,0.28126823,605.47,603.11,0.30425339]
[1742142917091,0.28126823,605.46,603.12,0.30425339]
[1742142917286,0.28126823,605.45,603.13,0.30425339]
[1742142917688,0.28126823,605.44,603.14,0.30425339]
[1742142917991,0.28126823,605.5,603.15,0.30425339]
[1742142918192,0.28126823,605.49,603.16,0.30425339]
[1742142918393,0.28126823,605.5,603.17,0.30425339]
[1742142918692,0.28126823,605.5,603.18,0.30425339]
[1742142918897,0.28126823,605.5,603.19,0.30425339]
[1742142919094,0.28126823,605.49,603.2,0.30425339]
[1742142919297,0.28126823,605.48,603.21,0.30425339]
[1742142919489,0.28126823,605.5,603.22,0.30425339]
[1742142919694,0.28126823,605.49,603.23,0.30425339]
[1742142919993,0.28126823,605.48,603.24,0.30425339]
[1742142920194,0.28126823,605.5,603.25,0.30425339]
[1742142920395,0.28126823,605.49,603.26,0.30425339]
[1742142920797,0.28126823,605.48,603.27,0.30425339]
[1742142921096,0.33030007,605.51,603.17,0.449]
[1742142921296,0.28105819,605.5,603.18,0.30404074]
[1742142921595,0.28105819,605.5,603.19,0.30404074]
[1742142921797,0.28105819,605.5,603.2,0.30404074]
[1742142921993,0.28105819,605.5,603.17,0.449]
[1742142921994,0.28105819,605.5,603.21,0.30404074]
[1742142922194,0.28105819,605.5,603.22,0.30404074]
[1742142922491,0.28105819,605.5,603.17,0.449]
[1742142922492,0.28105819,605.5,603.23,0.30404074]
[1742142922692,0.28105819,605.49,603.24,0.30404074]
[1742142922893,0.33030007,605.51,603.17,0.449]
[1742142923198,0.2811318,605.5,603.18,0.30411513]
[1742142923394,0.2811318,605.49,603.19,0.30411513]
[1742142923592,0.2811318,605.48,603.2,0.30411513]
[1742142923798,0.2811318,605.47,603.21,0.30411513]
[1742142924100,0.2811318,605.46,603.22,0.30411513]
[1742142924395,0.2811318,605.46,603.17,0.449]
[1742142924396,0.2811318,605.45,603.23,0.30411513]
[1742142924593,0.2811318,605.44,603.24,0.30411513]
[1742142924798,0.2811318,605.43,603.25,0.30411513]
[1742142924995,0.2811318,605.42,603.26,0.30411513]
[1742142925196,0.2811318,605.41,603.27,0.30411513]
[1742142925397,0.33030007,605.51,603.18,0.30411513]
[1742142925398,0.2811318,605.5,603.18,0.30411513]
[1742142925696,0.2811318,605.49,603.19,0.30411513]
[1742142925899,0.2811318,605.5,603.18,0.30411513]
[1742142926192,0.2811318,605.49,603.29,0.33151552]
[1742142926401,0.2811318,605.5,603.3,0.30411513]
[1742142926595,0.2811318,605.48,603.3,0.30411513]
[1742142926794,0.2811318,605.47,603.3,0.30411513]
[1742142926997,0.2811318,605.47,603.4,0.33145508]
[1742142927198,0.33033281,605.45,603.41,0.30411513]
[1742142927398,0.2811318,605.44,603.51,0.33139467]
[1742142927594,0.2811318,605.44,603.52,0.30411513]
[1742142928200,0.33033281,605.45,603.51,0.33139467]
[1742142928502,0.28107521,605.44,603.52,0.30405805]
[1742142928702,0.33034372,605.43,603.54,0.3313782]
[1742142928902,0.28107521,605.42,603.55,0.30405805]
[1742142930103,0.33034372,605.43,603.54,0.3313782]
[1742142930404,0.28105093,605.42,603.55,0.30403329]
[1742142931808,0.28105093,605.41,603.55,0.30403329]
[1742142932013,0.28105093,605.4,603.55,0.30403329]
[1742142932302,0.28105093,605.39,603.55,0.30403329]
[1742142932509,0.28105093,605.38,603.55,0.30403329]
[1742142932702,0.28105093,605.42,603.55,0.30403329]
[1742142932907,0.28105093,605.41,603.55,0.30403329]
[1742142933111,0.28105093,605.42,603.55,0.30403329]
[1742142933308,0.28105093,605.41,603.55,0.30403329]
[1742142933509,0.28105093,605.4,603.55,0.30403329]
[1742142933709,0.28105093,605.39,603.55,0.30403329]
[1742142933909,0.28105093,605.42,603.55,0.30403329]
[1742142934110,0.28107851,605.41,603.56,0.30406141]
[1742142934511,0.28107851,605.41,603.55,0.30406141]
[1742142934712,0.28107851,605.41,603.54,0.3313782]
[1742142934713,0.33034372,605.43,603.54,0.3313782]
[1742142935011,0.33034372,605.43,603.55,0.30405723]
[1742142935012,0.2810746,605.42,603.55,0.30405723]
[1742142936105,0.2810746,605.42,603.57,0.33136173]
[1742142936310,0.33036009,605.4,603.58,0.30405723]
[1742142936506,0.2810746,605.39,603.6,0.33134526]
[1742142936706,0.33037646,605.37,603.61,0.30405723]
[1742142936905,0.2810746,605.36,603.61,0.30405723]
[1742142937212,0.33039283,605.34,603.63,0.33132879]
[1742142937506,0.2810746,605.33,603.64,0.30405723]
[1742142937709,0.33040375,605.32,603.65,0.33131781]
[1742142938212,0.2810746,605.31,603.66,0.30405723]
[1742142938406,0.2810746,605.3,603.66,0.30405723]
[1742142938611,0.2810746,605.29,603.66,0.30405723]
[1742142938911,0.33043104,605.27,603.67,0.33130683]
[1742142939108,0.2810746,605.26,603.67,0.33130683]
[1742142939309,0.33044742,605.24,603.67,0.33130683]
[1742142939505,0.2810746,605.23,603.67,0.33130683]
[1742142939809,0.61159995,605.22,603.67,0.33130683]
[1742142940010,0.28114161,605.21,603.67,0.33130683]
[1742142940812,0.33045834,605.22,603.67,0.33130683]
[1742142941013,0.2810707,605.21,603.67,0.33130683]
[1742142941212,0.2810707,605.21,603.68,0.30405352]
[1742142941608,0.28105756,605.2,603.69,0.30404027]
[1742142941913,0.28105756,605.21,603.69,0.30404027]
[1742142942110,0.28105756,605.19,603.71,0.33128488]
[1742142942308,0.28105756,605.18,603.72,0.30404027]
[1742142942508,0.28105756,605.21,603.74,0.33126842]
[1742142942713,0.28105756,605.2,603.75,0.30404027]
[1742142943109,0.28105756,605.19,603.76,0.143]
[1742142943308,0.28105756,605.21,603.77,0.30404027]
[1742142943515,0.28105756,605.2,603.77,0.30404027]
[1742142943714,0.28105756,605.19,603.77,0.30404027]
[1742142943914,0.28105756,605.21,603.77,0.30404027]
[1742142944217,0.28105756,605.2,603.77,0.30404027]
[1742142944509,0.28105756,605.19,603.77,0.30404027]
[1742142944717,0.28105756,605.21,603.77,0.30404027]
[1742142946814,0.28105756,605.21,603.79,0.33124099]
[1742142947010,0.28105756,605.21,603.8,0.30404027]
[1742142947212,0.28105756,605.21,603.82,0.33122453]
[1742142947413,0.28105756,605.21,603.83,0.30404027]
[1742142947613,0.28105756,605.21,603.85,0.33120808]
[1742142947914,0.28105756,605.21,603.86,0.30404027]
[1742142948113,0.28105756,605.21,603.88,0.33119162]
[1742142948414,0.28105756,605.21,603.89,0.30404027]
[1742142948614,0.28105756,605.21,603.9,0.33118065]
[1742142948815,0.28105756,605.21,603.91,0.30404027]
[1742142949012,0.28105756,605.21,603.92,0.33116969]
[1742142949318,0.28105756,605.21,603.93,0.30404027]
[1742142949613,0.28105756,605.21,603.94,0.33115872]
[1742142949815,0.28105756,605.21,603.95,0.30404027]
[1742142950016,0.33045834,605.22,603.96,0.33114775]
[1742142950516,0.33045834,605.22,603.97,0.30394579]
[1742142950712,0.33045834,605.22,603.98,0.33113679]
[1742142951020,2.50262898,605.81,603.99,0.30394179]
[1742142951317,0.33014741,605.79,604.01,0.33112034]
[1742142951508,0.28097982,605.78,604.01,0.33112034]
[1742142951708,0.33016376,605.76,604.01,0.33112034]
[1742142951913,0.28097982,605.75,604.01,0.33112034]
[1742142952211,0.33018011,605.73,604.01,0.33112034]
[1742142952415,0.28097982,605.72,604.01,0.33112034]
[1742142952615,0.28097982,605.71,604.01,0.33112034]
[1742142952815,0.28097982,605.72,604.01,0.33112034]
[1742142953010,0.33019646,605.7,604.01,0.33112034]
[1742142953209,0.28098952,605.69,604.01,0.33112034]
[1742142953415,0.33021282,605.67,604.01,0.33112034]
[1742142953610,0.28098952,605.66,604.01,0.33112034]
[1742142953815,0.33022917,605.64,604.01,0.33112034]
[1742142954114,0.28098952,605.63,604.01,0.33112034]
[1742142954513,0.33024008,605.62,604.01,0.33112034]
[1742142954714,0.28098952,605.61,604.02,0.30395523]
[1742142954916,0.28098952,605.61,604.03,0.33110938]
[1742142955119,0.33025099,605.6,604.04,0.30395523]
[1742142955410,0.28098952,605.59,604.05,0.33109841]
[1742142955613,0.33026189,605.58,604.05,0.33109841]
[1742142955812,0.28098952,605.57,604.05,0.33109841]
[1742142956320,0.3302728,605.56,604.05,0.33109841]
[1742142956510,0.28098952,605.55,604.05,0.33109841]
[1742142957218,0.33028371,605.54,604.05,0.33109841]
[1742142957412,0.28098952,605.53,604.05,0.33109841]
[1742142957717,0.33029462,605.52,604.05,0.33109841]
[1742142957916,0.28098952,605.51,604.05,0.33109841]
[1742142958117,0.33030553,605.5,604.05,0.33109841]
[1742142958315,0.28098952,605.49,604.05,0.33109841]
[1742142959317,0.33031644,605.48,604.05,0.33109841]
[1742142959511,0.28098952,605.47,604.05,0.33109841]
[1742142961418,0.6113478,605.46,604.05,0.75209841]
[1742142961719,0.61135326,605.45,604.05,0.75209841]
[1742142962122,0.28102045,605.44,604.05,0.75209841]
[1742142962520,0.28102045,605.44,604.06,0.30396478]
[1742142962915,0.28102045,605.44,604.07,0.33108745]
[1742142966125,0.28102045,605.44,604.08,0.30389819]
[1742142966423,0.28102045,605.44,604.07,0.33108745]
[1742142967029,0.28102045,605.44,604.08,0.30392092]
[1742142967726,0.28102045,605.44,604.07,0.33108745]
[1742142967925,0.33033281,605.45,604.07,0.33108745]
[1742142968125,0.33033281,605.45,604.08,0.30388686]
[1742142968325,0.28090184,605.44,604.1,0.33107101]
[1742142968726,0.33033281,605.45,604.1,0.33107101]
[1742142968727,0.28090608,605.43,604.1,0.33107101]
[1742142968927,0.28090608,605.44,604.1,0.33107101]
[1742142970327,0.33033281,605.45,604.1,0.33107101]
[1742142970528,0.28090425,605.44,604.11,0.30387591]
[1742142970727,0.28090425,605.44,604.12,0.33106005]
[1742142971136,0.28090425,605.44,604.13,0.30387762]
[1742142971339,0.28090425,605.44,604.14,0.33104909]
[1742142973039,0.28090425,605.44,604.15,0.144]
[1742142973744,0.28090425,605.44,604.16,0.33103813]
[1742142976145,0.33033281,605.45,604.16,0.33103813]
[1742142976943,0.33033281,605.45,604.17,0.30382095]
[1742142977141,3.47530984,606.24,604.17,0.30382095]
[1742142977344,0.32995677,606.14,604.16,0.33103813]
[1742142977539,0.28087829,606.13,604.16,0.33103813]
[1742142977744,0.3299731,606.11,604.16,0.33103813]
[1742142977945,0.28088334,606.1,604.16,0.33103813]
[1742142978141,0.32998944,606.08,604.16,0.33103813]
[1742142978341,0.28088334,606.07,604.16,0.33103813]
[1742142978942,0.33000577,606.05,604.16,0.33103813]
[1742142979146,0.28088334,606.04,604.16,0.33103813]
[1742142979344,0.33002211,606.02,604.17,0.3038447]
[1742142979542,0.28088999,606.01,604.16,0.33103813]
[1742142979848,0.28088999,606.0,604.19,0.33102169]
[1742142980347,0.28088999,605.99,604.19,0.33102169]
[1742142980547,0.33002211,606.02,604.19,0.33102169]
[1742142980548,0.28088999,605.98,604.19,0.33102169]
[1742142980748,0.28088999,606.01,604.19,0.33102169]
[1742142981041,0.28088999,606.0,604.19,0.33102169]
[1742142981240,0.33004389,605.98,604.19,0.33102169]
[1742142981646,0.28089553,605.97,604.19,0.33102169]
[1742142981846,0.33006023,605.95,604.19,0.33102169]
[1742142982048,0.28089553,605.94,604.19,0.33102169]
[1742142982245,0.33007657,605.92,604.19,0.33102169]
[1742142982448,0.28089553,605.91,604.19,0.33102169]
[1742142982646,0.33009292,605.89,604.19,0.33102169]
[1742142982849,0.28089553,605.88,604.2,0.30386775]
[1742142983148,0.28089553,605.87,604.21,0.33101074]
[1742142983348,0.33010926,605.86,604.21,0.33101074]
[1742142983548,0.28086281,605.85,604.22,0.30384317]
[1742142983748,0.33012016,605.84,604.24,0.3309943]
[1742142984050,0.28086281,605.83,604.25,0.30384317]
[1742142984249,0.33013106,605.82,604.26,0.33098335]
[1742142984548,0.28086281,605.81,604.26,0.33098335]
[1742142984749,0.33014196,605.8,604.26,0.33098335]
[1742142984949,0.28086281,605.79,604.26,0.33098335]
[1742142985752,0.33015286,605.78,604.26,0.33098335]
[1742142985952,0.28086281,605.77,604.26,0.33098335]
[1742142987048,0.61102112,605.77,604.26,0.33098335]
[1742142987253,0.61102657,605.76,604.26,0.33098335]
[1742142987456,0.61103202,605.75,604.26,0.33098335]
[1742142987654,0.61103747,605.74,604.26,0.33098335]
[1742142987854,0.28086281,605.73,604.26,0.33098335]
[1742142988555,0.33017466,605.74,604.26,0.33098335]
[1742142988755,0.28088027,605.73,604.26,0.33098335]
[1742142989957,0.33018556,605.72,604.26,0.33098335]
[1742142990158,0.28088027,605.71,604.26,0.33098335]
[1742142990457,0.33019646,605.7,604.26,0.33098335]
[1742142990656,0.28088027,605.69,604.26,0.33098335]
[1742142990856,0.61108218,605.69,604.26,0.33098335]
[1742142991051,0.28088027,605.68,604.26,0.33098335]
[1742142993760,0.28088027,605.68,604.27,0.30377277]
[1742142994258,0.28079434,605.67,604.28,0.30377374]
[1742142994461,0.28079434,605.66,604.29,0.30377374]
[1742142994654,0.28079434,605.65,604.3,0.30377374]
[1742142994858,0.28079434,605.64,604.31,0.30377374]
[1742142995057,0.28079434,605.68,604.27,0.30380239]
[1742142995261,0.28079434,605.67,604.26,0.33098335]
[1742142995460,0.28079434,605.68,604.27,0.3038024]
[1742142995762,0.28079434,605.67,604.27,0.3038024]
[1742142996160,0.28079434,605.66,604.27,0.3038024]
[1742142996362,0.28079434,605.68,604.27,0.3038024]
[1742142996656,0.28079434,605.67,604.27,0.3038024]
[1742142996855,0.28079434,605.66,604.27,0.3038024]
[1742142997056,0.28079434,605.65,604.27,0.3038024]
[1742142997361,0.28079434,605.64,604.27,0.3038024]
[1742142997663,0.28079434,605.68,604.27,0.3038024]
[1742142997862,0.28079434,605.67,604.27,0.3038024]
[1742142998066,0.28079434,605.68,604.27,0.3038024]
[1742142998460,0.28079434,605.68,604.26,0.33098335]
[1742142998856,0.28079434,605.68,604.27,0.30381762]
[1742142999362,0.28079434,605.68,604.26,0.33098335]
[1742142999559,0.33020191,605.69,604.26,0.33098335]
[1742142999759,0.28084883,605.68,604.26,0.33098335]
[1742143001764,0.28084883,605.68,604.27,0.30379902]
[1742143002860,0.28084883,605.68,604.29,0.33096691]
[1742143003267,0.28079771,605.67,604.29,0.47496691]
[1742143003467,0.28079771,605.68,604.29,0.47496691]
[1742143003667,0.28079771,605.67,604.29,0.47496691]
[1742143003967,0.28079771,605.66,604.29,0.47496691]
[1742143004267,0.28079771,605.65,604.29,0.47496691]
[1742143004462,0.28079771,605.68,604.29,0.47496691]
[1742143004664,0.28079771,605.67,604.29,0.47496691]
[1742143004865,0.28079771,605.68,604.29,0.47496691]
[1742143005067,0.28079771,605.66,604.29,0.47496691]
[1742143005266,0.28079771,605.65,604.29,0.47496691]
[1742143005466,0.28079771,605.68,604.29,0.47496691]
[1742143005774,0.28079771,605.67,604.29,0.47496691]
[1742143006068,0.28079771,605.66,604.29,0.47496691]
[1742143006262,0.28079771,605.68,604.29,0.47496691]
[1742143006464,0.33021282,605.67,604.29,0.47496691]
[1742143006665,0.28079771,605.66,604.29,0.47496691]
[1742143013378,0.33021282,605.67,604.29,0.47496691]
[1742143013580,0.28084568,605.66,604.29,0.47496691]
[1742143013976,0.28084162,605.65,604.29,0.47496691]
[1742143014172,0.28084162,605.66,604.29,0.47496691]
[1742143014377,0.28084162,605.65,604.29,0.47496691]
[1742143014578,0.28084162,605.64,604.29,0.47496691]
[1742143014877,0.28084162,605.63,604.29,0.47496691]
[1742143015073,0.28084162,605.62,604.29,0.47496691]
[1742143015279,0.28084162,605.66,604.3,0.3037678]
[1742143015675,0.33021282,605.67,604.29,0.47496691]
[1742143015875,0.28079692,605.66,604.3,0.30377654]
[1742143017878,0.28079692,605.66,604.32,0.33095048]
[1742143018075,0.28079692,605.66,604.33,0.30377654]
[1742143019276,0.28079692,605.66,604.35,0.33093406]
[1742143019580,0.28079692,605.66,604.36,0.84377654]
[1742143019782,0.28079692,605.66,604.37,0.30377654]
[1742143021385,0.28079692,605.66,604.36,0.54]
[1742143022580,0.28079692,605.66,604.37,0.30378977]
[1742143022984,0.28079692,605.66,604.36,0.54]
[1742143023885,0.28079692,605.66,604.37,0.33092311]
[1742143026086,0.33021282,605.67,604.37,0.33092311]
[1742143026389,0.28079279,605.66,604.37,0.33092311]
[1742143031491,0.33021282,605.67,604.37,0.33092311]
[1742143031694,0.28080349,605.66,604.37,0.33092311]
[1742143033196,0.33021282,605.67,604.37,0.33092311]
[1742143033397,0.28080168,605.66,604.37,0.33092311]
[1742143033999,0.28080168,605.66,604.38,0.144]
[1742143034199,0.28080168,605.66,604.39,0.33091215]
[1742143036500,0.28080168,605.66,604.4,0.30375521]
[1742143036701,3.90272172,606.37,604.4,0.30375521]
[1742143036899,0.3298425,606.35,604.42,0.33089573]
[1742143037106,1.76728338,606.35,604.42,0.33089573]
[1742143037297,0.28074676,606.34,604.42,0.33089573]
[1742143037497,0.32985882,606.32,604.43,0.30373933]
[1742143037700,0.28074676,606.31,604.44,0.33088478]
[1742143037901,0.32987514,606.29,604.44,0.33088478]
[1742143038104,0.28074676,606.28,604.44,0.33088478]
[1742143038294,0.32989146,606.26,604.44,0.33088478]
[1742143038496,0.28074676,606.25,604.44,0.33088478]
[1742143038696,0.32990779,606.23,604.44,0.33088478]
[1742143039095,0.28077006,606.22,604.44,0.33088478]
[1742143039297,0.32992411,606.2,604.44,0.33088478]
[1742143039499,0.28077006,606.19,604.44,0.33088478]
[1742143039698,0.32994044,606.17,604.44,0.33088478]
[1742143039898,0.28077006,606.16,604.44,0.33088478]
[1742143042302,0.32994044,606.17,604.44,0.33088478]
[1742143042502,0.2807711,606.16,604.44,0.33088478]
[1742143043104,0.32994044,606.17,604.44,0.33088478]
[1742143043409,0.28077038,606.16,604.44,0.33088478]
[1742143044402,0.32995677,606.14,604.44,0.33088478]
[1742143044606,0.28077038,606.13,604.44,0.33088478]
[1742143045615,0.3299731,606.11,604.45,0.542]
[1742143046003,0.28077038,606.1,604.45,0.542]
[1742143046203,0.28081244,606.09,604.45,0.542]
[1742143046404,0.28081244,606.08,604.45,0.542]
[1742143046602,0.28081244,606.07,604.45,0.542]
[1742143046906,0.3299731,606.11,604.45,0.542]
[1742143046907,0.28081244,606.06,604.45,0.542]
[1742143047113,0.28081244,606.1,604.45,0.542]
[1742143047311,0.28081244,606.09,604.45,0.542]
[1742143047608,0.28081244,606.08,604.45,0.542]
[1742143047809,0.28081244,606.07,604.45,0.542]
[1742143048010,0.28081244,606.06,604.45,0.542]
[1742143048216,2.50262898,606.09,604.45,0.542]
[1742143048217,0.28081244,606.05,604.45,0.542]
[1742143048513,0.28081244,606.04,604.45,0.542]
[1742143048709,0.28081244,606.03,604.45,0.542]
[1742143048909,0.28081244,606.02,604.45,0.542]
[1742143049209,0.28081244,606.01,604.45,0.542]
[1742143049409,0.28081244,606.0,604.45,0.542]
[1742143049713,0.28081244,605.99,604.45,0.542]
[1742143050005,0.28081244,605.98,604.45,0.542]
[1742143050202,0.28081244,605.97,604.45,0.542]
[1742143050403,0.28081244,605.96,604.45,0.542]
[1742143050607,0.28081244,605.95,604.45,0.542]
[1742143050804,0.28081244,605.94,604.45,0.542]
[1742143051009,0.28081244,605.93,604.45,0.542]
[1742143051205,0.28081244,605.92,604.45,0.542]
[1742143051710,0.28081244,605.91,604.45,0.542]
[1742143051911,0.28081244,605.9,604.45,0.542]
[1742143052210,0.28081244,605.89,604.45,0.542]
[1742143052411,0.28081244,605.88,604.45,0.542]
[1742143052612,2.50262898,605.67,604.45,0.542]
[1742143052807,4.10133715,605.66,604.45,0.542]
[1742143053014,0.61103616,605.65,604.45,0.542]
[1742143053207,0.61104161,605.64,604.45,0.542]
[1742143053413,0.61104707,605.63,604.45,0.542]
[1742143053613,0.61105252,605.62,604.45,0.542]
[1742143053813,0.61105797,605.61,604.45,0.542]
[1742143054015,0.61106343,605.6,604.46,0.144]
[1742143054210,0.61106888,605.59,604.46,0.144]
[1742143054410,0.61107433,605.58,604.46,0.144]
[1742143054617,0.61107979,605.57,604.46,0.144]
[1742143054814,0.61108524,605.56,604.46,0.144]
[1742143055017,0.61109069,605.55,604.46,0.144]
[1742143055312,0.61109615,605.54,604.46,0.144]
[1742143055516,0.6111016,605.53,604.46,0.144]
[1742143055817,0.61110706,605.52,604.46,0.144]
[1742143056017,0.28081244,605.51,604.46,0.144]
[1742143057119,0.28081244,605.5,604.46,0.144]
[1742143057315,0.28081244,605.51,604.46,0.144]
[1742143058216,0.28081244,605.5,604.46,0.144]
[1742143058417,0.28081244,605.51,604.46,0.144]
[1742143058617,0.28081244,605.5,604.46,0.144]
[1742143058817,0.28081244,605.51,604.46,0.144]
[1742143059017,0.28081244,605.49,604.46,0.144]
[1742143059225,0.28081244,605.51,604.46,0.144]
[1742143059412,0.28081244,605.5,604.46,0.144]
[1742143059611,0.28081244,605.51,604.46,0.144]
[1742143059814,0.28081244,605.5,604.46,0.144]
[1742143060014,0.28081244,605.51,604.46,0.144]
[1742143060214,0.61111797,605.5,604.46,0.144]
[1742143060415,0.61112342,605.49,604.46,0.144]
[1742143060615,0.61112888,605.48,604.46,0.144]
[1742143060813,0.61113433,605.47,604.46,0.144]
[1742143061017,0.61113979,605.46,604.46,0.144]
[1742143061217,0.33033281,605.45,604.46,0.144]
[1742143061418,0.61114525,605.45,604.46,0.144]
[1742143061813,0.28081244,605.44,604.46,0.144]
[1742143062415,0.33034372,605.43,604.46,0.144]
[1742143062619,0.28081244,605.42,604.46,0.144]
[1742143062917,0.28099084,605.41,604.46,0.144]
[1742143063117,0.28099084,605.42,604.46,0.144]
[1742143063314,0.28099084,605.41,604.46,0.144]
[1742143063514,0.28099084,605.42,604.46,0.144]
[1742143068114,0.33034372,605.43,604.46,0.144]
[1742143068316,0.28087636,605.42,604.46,0.144]
[1742143070424,0.33034372,605.43,604.46,0.144]
[1742143070624,0.28088809,605.42,604.46,0.144]
[1742143073926,0.2809336,605.41,604.46,0.144]
[1742143074226,0.2809336,605.4,604.46,0.144]
[1742143074427,0.2809336,605.39,604.46,0.144]
[1742143074626,0.2809336,605.38,604.46,0.144]
[1742143074819,0.2809336,605.37,604.46,0.144]
[1742143075023,0.2809336,605.42,604.46,0.144]
[1742143075222,0.2809336,605.41,604.46,0.144]
[1742143075426,0.2809336,605.4,604.46,0.144]
[1742143075622,0.2809336,605.42,604.46,0.144]
[1742143075822,0.2809336,605.41,604.46,0.144]
[1742143076032,0.2809336,605.4,603.92,0.28781858]
[1742143076221,0.2809336,605.42,603.94,0.33115872]
[1742143076429,0.2809336,605.42,603.95,0.30392179]
[1742143076622,0.2809336,605.42,603.97,0.33114227]
[1742143076821,0.2809336,605.42,603.98,0.30392179]
[1742143077024,0.33034372,605.43,603.99,0.33113131]
[1742143077225,0.2809439,605.42,604.0,0.30392506]
[1742143077522,0.28094101,605.41,604.01,0.63504251]
[1742143077723,0.28094101,605.42,604.02,0.63503703]
[1742143077929,0.28094101,605.41,604.03,0.63503155]
[1742143078122,0.28094101,605.41,604.04,0.3311039]
[1742143078326,0.28094101,605.4,604.05,0.30392217]
[1742143078527,0.28094101,605.42,604.05,0.30392217]
[1742143078827,0.28094101,605.42,604.06,0.33109293]
[1742143079024,0.28094101,605.42,604.07,0.30392217]
[1742143079424,0.33034372,605.43,604.06,0.33109293]
[1742143079625,0.28094534,605.42,604.08,0.47508197]
[1742143079829,0.28094534,605.42,604.09,0.33107649]
[1742143081230,0.28094534,605.42,604.1,0.30393194]
[1742143081530,0.28094534,605.42,604.11,0.33106553]
[1742143082127,0.28094534,605.42,604.12,0.30392735]
[1742143082332,0.28094534,605.42,604.13,0.33105457]
[1742143082532,0.28094534,605.42,604.14,0.30392735]
[1742143083232,0.28094534,605.42,604.15,0.33104361]
[1742143083433,0.28094534,605.42,604.16,0.30392735]
[1742143083633,0.28094534,605.42,604.17,0.33103265]
[1742143084932,0.28094534,605.42,604.18,0.30390567]